fUST/lending_fUST_20240626
["ID","MTS","AMOUNT","RATE_DAILY","PERIOD"]
[330401191,1719348640504,-500.0,0.00016438,2]
[330401192,1719348640513,-500.0,0.00016438,2]
[330401193,1719348640522,-500.0,0.00016438,2]
[330401194,1719348640532,-1754.49,0.00016438,2]
[330401195,1719348640541,-500.0,0.00016438,2]
[330401196,1719348640550,-4719.55,0.00016438,2]
[330401197,1719348640559,-500.0,0.00016438,2]
[330401198,1719348640569,-500.0,0.00016438,2]
[330401199,1719348640578,-500.0,0.00016438,2]
[330401200,1719348640587,-2733.96,0.00016438,2]
[330401201,1719348640596,-500.0,0.00016438,2]
[330401202,1719348640605,-512.20271342,0.00016438,2]
[330401203,1719348640615,-500.0,0.00016438,2]
[330401204,1719348640624,-642.34195471,0.00016438,2]
[330401205,1719348640633,-500.0,0.00016438,2]
[330401206,1719348640642,-500.0,0.00016438,2]
[330401207,1719348640651,-516.71141389,0.00016438,2]
[330401208,1719348640660,-500.0,0.00016438,2]
[330401209,1719348640669,-580.78,0.00016438,2]
[330401210,1719348640678,-3108.87,0.00016438,2]
[330401211,1719348640687,-500.0,0.00016438,2]
[330401212,1719348640701,-500.0,0.00016438,2]
[330401213,1719348640711,-672.04,0.00016438,2]
[330401214,1719348640720,-500.0,0.00016438,2]
[330401215,1719348640729,-500.0,0.00016438,2]
[330401216,1719348640739,-500.0,0.00016438,2]
[330401217,1719348640749,-500.0,0.00016438,2]
[330401218,1719348640758,-500.0,0.00016438,2]
[330401219,1719348640768,-585.4,0.00016438,2]
[330401220,1719348640778,-500.0,0.00016438,2]
[330401221,1719348640788,-5402.61,0.00016438,2]
[330401222,1719348640798,-500.0,0.00016438,2]
[330401223,1719348640807,-5171.68,0.00016438,2]
[330401224,1719348640816,-500.0,0.00016438,2]
[330401225,1719348640825,-500.0,0.00016438,2]
[330401226,1719348640834,-500.0,0.00016438,2]
[330401227,1719348640844,-500.0,0.00016438,2]
[330401228,1719348640853,-500.0,0.00016438,2]
[330401229,1719348640863,-500.0,0.00016438,2]
[330401230,1719348640872,-500.0,0.00016438,2]
[330401231,1719348640881,-500.0,0.00016438,2]
[330401232,1719348640890,-500.0,0.00016438,2]
[330401233,1719348640899,-789.39,0.00016438,2]
[330401234,1719348640908,-1214.92,0.00016438,2]
[330401236,1719348640917,-1381.9,0.00016438,2]
[330401238,1719348640927,-506.16822814,0.00016438,2]
[330401240,1719348640936,-557.67,0.00016438,2]
[330401242,1719348640945,-500.0,0.00016438,2]
[330401244,1719348640954,-557.67,0.00016438,2]
[330401246,1719348640963,-557.67,0.00016438,2]
[330401248,1719348640972,-711.25,0.00016438,2]
[330401250,1719348640981,-557.67,0.00016438,2]
[330401252,1719348640991,-500.0,0.00016438,2]
[330401254,1719348641000,-500.0,0.00016438,2]
[330401256,1719348641009,-3409.84,0.00016438,2]
[330401258,1719348641018,-500.0,0.00016438,2]
[330401260,1719348641027,-500.0,0.00016438,2]
[330401262,1719348641036,-500.0,0.00016438,2]
[330401264,1719348641045,-500.0,0.00016438,2]
[330401266,1719348641054,-606.0479147,0.00016438,2]
[330401268,1719348641063,-500.0,0.00016438,2]
[330401270,1719348641072,-500.0,0.00016438,2]
[330401272,1719348641081,-1613.24,0.00016438,2]
[330401274,1719348641090,-500.0,0.00016438,2]
[330401276,1719348641099,-500.0,0.00016438,2]
[330401278,1719348641108,-500.0,0.00016438,2]
[330401280,1719348641117,-500.0,0.00016438,2]
[330401282,1719348641126,-546.97351837,0.00016438,2]
[330401284,1719348641135,-500.0,0.00016438,2]
[330401286,1719348641144,-500.0,0.00016438,2]
[330401288,1719348641154,-500.0,0.00016438,2]
[330401290,1719348641163,-500.0,0.00016438,2]
[330401292,1719348641172,-1682.65,0.00016438,2]
[330401294,1719348641181,-436.52515437,0.00016438,2]
[330401296,1719348641189,-500.0,0.00016438,2]
[330401297,1719348641199,-500.0,0.00016438,2]
[330401299,1719348641208,-500.0,0.00016438,2]
[330401301,1719348641218,-500.0,0.00016438,2]
[330401303,1719348641227,-500.0,0.00016438,2]
[330401305,1719348641235,-606.13,0.00016438,2]
[330401307,1719348641245,-485.35413875,0.00016438,2]
[330401309,1719348641254,-500.0,0.00016438,2]
[330401311,1719348641263,-500.0,0.00016438,2]
[330401313,1719348641272,-1162.02,0.00016438,2]
[330401315,1719348641280,-629.72,0.00016438,2]
[330401317,1719348641289,-500.0,0.00016438,2]
[330401319,1719348641298,-500.0,0.00016438,2]
[330401321,1719348641307,-851.15,0.00016438,2]
[330401323,1719348641315,-1273.46,0.00016438,2]
[330401325,1719348641324,-500.0,0.00016438,2]
[330401327,1719348641333,-666.44,0.00016438,2]
[330401329,1719348641342,-500.0,0.00016438,2]
[330401331,1719348641351,-500.0,0.00016438,2]
[330401333,1719348641362,-500.0,0.00016438,2]
[330401335,1719348641371,-500.0,0.00016438,2]
[330401337,1719348641380,-500.0,0.00016438,2]
[330401339,1719348641389,-500.0,0.00016438,2]
[330401341,1719348641398,-500.0,0.00016438,2]
[330401343,1719348641407,-826.01,0.00016438,2]
[330401345,1719348641420,-500.0,0.00016438,2]
[330401347,1719348641429,-622.86,0.00016438,2]
[330401349,1719348641438,-500.0,0.00016438,2]
[330401351,1719348641447,-2519.94,0.00016438,2]
[330401353,1719348641456,-1218.31,0.00016438,2]
[330401355,1719348641466,-156.33392778,0.00016438,2]
[330401357,1719348641475,-500.0,0.00016438,2]
[330401359,1719348641484,-3376.55,0.00016438,2]
[330401361,1719348641494,-673.6,0.00016438,2]
[330401363,1719348641503,-500.0,0.00016438,2]
[330401365,1719348641512,-1875.53,0.00016438,2]
[330401367,1719348641522,-500.0,0.00016438,2]
[330401369,1719348641531,-1131.78,0.00016438,2]
[330401371,1719348641540,-500.0,0.00016438,2]
[330401373,1719348641549,-6786.21,0.00016438,2]
[330401375,1719348641558,-500.0,0.00016438,2]
[330401377,1719348641568,-1719.44,0.00016438,2]
[330401379,1719348641577,-949.53,0.00016438,2]
[330401381,1719348641586,-9046.64,0.00016438,2]
[330401383,1719348641595,-500.0,0.00016438,2]
[330401385,1719348641604,-500.0,0.00016438,2]
[330401387,1719348641613,-500.0,0.00016438,2]
[330401389,1719348641622,-500.0,0.00016438,2]
[330401391,1719348641631,-2731.74,0.00016438,2]
[330401393,1719348641640,-997.69,0.00016438,2]
[330401395,1719348641649,-10473.66,0.00016438,2]
[330401397,1719348641658,-444.59224402,0.00016438,2]
[330401399,1719348641668,-1077.49,0.00016438,2]
[330401401,1719348641678,-500.0,0.00016438,2]
[330401403,1719348641687,-500.0,0.00016438,2]
[330401405,1719348641702,-500.0,0.00016438,2]
[330401407,1719348641711,-792.61,0.00016438,2]
[330401408,1719348641720,-500.0,0.00016438,2]
[330401410,1719348641730,-500.0,0.00016438,2]
[330401412,1719348641742,-500.0,0.00016438,2]
[330401414,1719348641751,-500.0,0.00016438,2]
[330401416,1719348641760,-817.48,0.00016438,2]
[330401418,1719348641769,-500.0,0.00016438,2]
[330401420,1719348641780,-500.0,0.00016438,2]
[330401435,1719348641904,-500.0,0.00016438,2]
[330401437,1719348641914,-500.0,0.00016438,2]
[330401439,1719348641924,-1096.48,0.00016438,2]
[330401441,1719348641933,-500.0,0.00016438,2]
[330401443,1719348641942,-500.0,0.00016438,2]
[330401445,1719348641952,-500.0,0.00016438,2]
[330401447,1719348641961,-500.0,0.00016438,2]
[330401449,1719348641971,-500.0,0.00016438,2]
[330401451,1719348641980,-500.0,0.00016438,2]
[330401453,1719348641989,-500.0,0.00016438,2]
[330401455,1719348641998,-1315.17,0.00016438,2]
[330401457,1719348642007,-500.0,0.00016438,2]
[330401459,1719348642017,-4491.92,0.00016438,2]
[330401461,1719348642026,-8998.3,0.00016438,2]
[330401463,1719348642036,-500.0,0.00016438,2]
[330401465,1719348642045,-500.0,0.00016438,2]
[330401467,1719348642054,-500.0,0.00016438,2]
[330401469,1719348642063,-500.0,0.00016438,2]
[330401471,1719348642072,-26521.76,0.00016438,2]
[330401473,1719348642082,-500.0,0.00016438,2]
[330401475,1719348642091,-640.19716847,0.0001665,2]
[330401477,1719348642100,-276.11669524,0.00016652,2]
[330401479,1719348642109,-557.67,0.00016711,2]
[330401481,1719348642118,-557.67,0.00016711,2]
[330401483,1719348642128,-557.67,0.00016711,2]
[330401485,1719348642137,-557.67,0.00016711,2]
[330401487,1719348642147,-876.0,0.00016712,2]
[330401489,1719348642155,-17738.88478924,0.00016712,2]
[330401491,1719348642164,-500.0,0.00016712,2]
[330401493,1719348642174,-250.0,0.00016712,2]
[330401495,1719348642184,-500.0,0.00016712,2]
[330401497,1719348642193,-500.0,0.00016712,2]
[330401499,1719348642203,-500.0,0.00016712,2]
[330401501,1719348642213,-181.04395172,0.00016712,2]
[330401503,1719348642222,-627.91,0.00016712,2]
[330401505,1719348642232,-500.0,0.00016712,2]
[330401507,1719348642241,-506.83470859,0.00016712,2]
[330401508,1719348642250,-488.63102853,0.00016712,2]
[330401510,1719348642259,-786.27,0.00016712,2]
[330401512,1719348642268,-500.0,0.00016712,2]
[330401514,1719348642278,-500.0,0.00016712,2]
[330401516,1719348642287,-611.69651806,0.00016712,2]
[330401518,1719348642296,-500.0,0.00016712,2]
[330401520,1719348642306,-197.46654443,0.00016712,2]
[330401522,1719348642315,-500.0,0.00016712,2]
[330401524,1719348642325,-500.0,0.00016712,2]
[330401526,1719348642334,-500.0,0.00016712,2]
[330401528,1719348642343,-500.0,0.00016712,2]
[330401530,1719348642353,-500.0,0.00016712,2]
[330401532,1719348642362,-500.0,0.00016712,2]
[330401534,1719348642371,-500.0,0.00016712,2]
[330401536,1719348642381,-500.0,0.00016712,2]
[330401538,1719348642390,-500.0,0.00016712,2]
[330401540,1719348642399,-500.0,0.00016712,2]
[330401542,1719348642409,-770.33,0.00016712,2]
[330401544,1719348642418,-500.0,0.00016712,2]
[330401546,1719348642428,-500.0,0.00016712,2]
[330401548,1719348642438,-650.81,0.00016712,2]
[330401550,1719348642447,-500.0,0.00016712,2]
[330401552,1719348642457,-500.0,0.00016712,2]
[330401554,1719348642467,-500.0,0.00016712,2]
[330401556,1719348642476,-500.0,0.00016712,2]
[330401558,1719348642485,-633.08551059,0.00016712,2]
[330401560,1719348642495,-1146.46,0.00016712,2]
[330401562,1719348642505,-227.48154255,0.00016712,2]
[330401583,1719348642723,-272.51845745,0.00016712,2]
[330401585,1719348642733,-500.0,0.00016712,2]
[330401587,1719348642743,-500.0,0.00016712,2]
[330401589,1719348642753,-500.0,0.00016712,2]
[330401591,1719348642762,-500.0,0.00016712,2]
[330401593,1719348642772,-500.0,0.00016712,2]
[330401595,1719348642782,-500.0,0.00016712,2]
[330401597,1719348642793,-500.0,0.00016712,2]
[330401599,1719348642802,-500.0,0.00016712,2]
[330401601,1719348642813,-500.0,0.00016712,2]
[330401603,1719348642822,-500.0,0.00016712,2]
[330401605,1719348642831,-500.0,0.00016712,2]
[330401607,1719348642840,-500.0,0.00016712,2]
[330401609,1719348642850,-1304.54,0.00016712,2]
[330401611,1719348642859,-416.84264432,0.00016712,2]
[330401612,1719348642868,-1045.35,0.00016712,2]
[330401614,1719348642877,-500.0,0.00016712,2]
[330401616,1719348642886,-151.0,0.00016712,2]
[330401617,1719348642895,-500.0,0.00016712,2]
[330401619,1719348642904,-500.0,0.00016712,2]
[330401621,1719348642914,-584.88,0.00016712,2]
[330401623,1719348642923,-500.0,0.00016712,2]
[330401625,1719348642932,-500.0,0.00016712,2]
[330401626,1719348642942,-164.967774,0.00016712,2]
[330401629,1719348642953,-500.0,0.00016712,2]
[330401632,1719348642964,-500.0,0.00016712,2]
[330401633,1719348642974,-500.0,0.00016712,2]
[330401635,1719348642984,-151.0,0.00016712,2]
[330401637,1719348642993,-500.0,0.00016712,2]
[330401639,1719348643003,-1504.96,0.00016712,2]
[330401641,1719348643012,-500.0,0.00016712,2]
[330401643,1719348643022,-500.0,0.00016712,2]
[330401645,1719348643032,-500.0,0.00016712,2]
[330401647,1719348643041,-500.0,0.00016712,2]
[330401649,1719348643052,-500.0,0.00016712,2]
[330401651,1719348643062,-500.0,0.00016712,2]
[330401653,1719348643071,-537.77197571,0.00016712,2]
[330401655,1719348643081,-500.0,0.00016712,2]
[330401657,1719348643090,-500.0,0.00016712,2]
[330401659,1719348643100,-500.0,0.00016712,2]
[330401661,1719348643109,-1236.2,0.00016712,2]
[330401663,1719348643119,-500.0,0.00016712,2]
[330401665,1719348643128,-500.0,0.00016712,2]
[330401667,1719348643139,-500.0,0.00016712,2]
[330401669,1719348643148,-379.03047962,0.00016712,2]
[330401672,1719348643162,-202.61952038,0.00016712,2]
[330401673,1719348643171,-500.0,0.00016712,2]
[330401675,1719348643181,-500.0,0.00016712,2]
[330401677,1719348643191,-991.85,0.00016712,2]
[330401678,1719348643200,-500.0,0.00016712,2]
[330401679,1719348643209,-780.38,0.00016712,2]
[330401680,1719348643218,-500.0,0.00016712,2]
[330401681,1719348643228,-500.0,0.00016712,2]
[330401682,1719348643237,-839.65,0.00016712,2]
[330401683,1719348643246,-500.0,0.00016712,2]
[330401684,1719348643255,-500.0,0.00016712,2]
[330401685,1719348643264,-500.0,0.00016712,2]
[330401686,1719348643273,-151.0,0.00016712,2]
[330401687,1719348643282,-151.0,0.00016712,2]
[330401688,1719348643292,-500.0,0.00016712,2]
[330401689,1719348643301,-2639.84,0.00016712,2]
[330401690,1719348643310,-500.0,0.00016712,2]
[330401691,1719348643320,-500.0,0.00016712,2]
[330401692,1719348643329,-500.0,0.00016712,2]
[330401693,1719348643338,-500.0,0.00016712,2]
[330401694,1719348643348,-1030.25,0.00016712,2]
[330401695,1719348643360,-1003.13,0.00016712,2]
[330401696,1719348643369,-500.0,0.00016712,2]
[330401698,1719348643378,-576.91,0.00016712,2]
[330401700,1719348643388,-500.0,0.00016712,2]
[330401702,1719348643397,-500.0,0.00016712,2]
[330401704,1719348643406,-500.0,0.00016712,2]
[330401706,1719348643415,-500.0,0.00016712,2]
[330401707,1719348643424,-500.0,0.00016712,2]
[330401708,1719348643434,-500.0,0.00016712,2]
[330401709,1719348643443,-500.0,0.00016712,2]
[330401710,1719348643452,-500.0,0.00016712,2]
[330401711,1719348643461,-500.0,0.00016712,2]
[330401712,1719348643470,-500.0,0.00016712,2]
[330401713,1719348643480,-500.0,0.00016712,2]
[330401714,1719348643489,-500.0,0.00016712,2]
[330401715,1719348643498,-500.0,0.00016712,2]
[330401716,1719348643507,-500.0,0.00016712,2]
[330401717,1719348643517,-500.0,0.00016712,2]
[330401718,1719348643526,-779.3,0.00016712,2]
[330401720,1719348643535,-500.0,0.00016712,2]
[330401722,1719348643545,-21999.72,0.00016712,2]
[330401724,1719348643554,-500.0,0.00016712,2]
[330401726,1719348643563,-500.0,0.00016712,2]
[330401728,1719348643572,-500.0,0.00016712,2]
[330401730,1719348643581,-151.0,0.00016712,2]
[330401732,1719348643591,-500.0,0.00016712,2]
[330401734,1719348643600,-500.0,0.00016712,2]
[330401736,1719348643609,-500.0,0.00016712,2]
[330401737,1719348643618,-151.0,0.00016712,2]
[330401739,1719348643627,-151.0,0.00016712,2]
[330401741,1719348643638,-500.0,0.00016712,2]
[330401746,1719348643675,-500.0,0.00016712,2]
[330401748,1719348643684,-151.0,0.00016712,2]
[330401750,1719348643694,-159.85248772,0.00016712,2]
[330401751,1719348643705,-500.0,0.00016712,2]
[330401753,1719348643714,-1655.1,0.00016712,2]
[330401755,1719348643723,-500.0,0.00016712,2]
[330401757,1719348643732,-500.0,0.00016712,2]
[330401759,1719348643742,-500.0,0.00016712,2]
[330401761,1719348643751,-500.0,0.00016712,2]
[330401763,1719348643760,-500.0,0.00016712,2]
[330401765,1719348643769,-1754.49,0.00016712,2]
[330401767,1719348643781,-4719.55,0.00016712,2]
[330401769,1719348643791,-500.0,0.00016712,2]
[330401771,1719348643800,-500.0,0.00016712,2]
[330401773,1719348643809,-151.0,0.00016712,2]
[330401775,1719348643818,-500.0,0.00016712,2]
[330401777,1719348643828,-2733.96,0.00016712,2]
[330401779,1719348643837,-500.0,0.00016712,2]
[330401781,1719348643846,-500.0,0.00016712,2]
[330401783,1719348643856,-500.0,0.00016712,2]
[330401784,1719348643865,-500.0,0.00016712,2]
[330401785,1719348643874,-3108.87,0.00016712,2]
[330401786,1719348643883,-580.78,0.00016712,2]
[330401788,1719348643892,-500.0,0.00016712,2]
[330401790,1719348643901,-500.0,0.00016712,2]
[330401792,1719348643910,-672.04,0.00016712,2]
[330401794,1719348643919,-500.0,0.00016712,2]
[330401795,1719348643929,-500.0,0.00016712,2]
[330401797,1719348643938,-563.97083849,0.00016712,2]
[330401798,1719348643947,-500.0,0.00016712,2]
[330401799,1719348643956,-544.69857788,0.00016712,2]
[330402022,1719348647282,-525.4495035,0.00015705,2]
[330402028,1719348647325,-592.42522483,0.00015705,2]
[330402030,1719348647335,-154.83742071,0.00016139,2]
[330402032,1719348647345,-500.0,0.00016438,2]
[330402034,1719348647354,-500.0,0.00016438,2]
[330402036,1719348647365,-500.0,0.00016438,2]
[330402038,1719348647374,-87.48964147,0.00016712,2]
[330402040,1719348647383,-585.4,0.00016712,2]
[330402042,1719348647393,-500.0,0.00016712,2]
[330402045,1719348647402,-5402.61,0.00016712,2]
[330402048,1719348647411,-5171.68,0.00016712,2]
[330402050,1719348647420,-500.0,0.00016712,2]
[330402053,1719348647430,-500.0,0.00016712,2]
[330402056,1719348647439,-500.0,0.00016712,2]
[330402058,1719348647449,-500.0,0.00016712,2]
[330402060,1719348647458,-500.0,0.00016712,2]
[330402063,1719348647467,-500.0,0.00016712,2]
[330402066,1719348647477,-500.0,0.00016712,2]
[330402068,1719348647486,-500.0,0.00016712,2]
[330402070,1719348647495,-789.39,0.00016712,2]
[330402072,1719348647505,-1381.9,0.00016712,2]
[330402074,1719348647515,-1214.92,0.00016712,2]
[330402076,1719348647523,-500.0,0.00016712,2]
[330402078,1719348647533,-711.25,0.00016712,2]
[330402080,1719348647542,-500.0,0.00016712,2]
[330402082,1719348647552,-3409.84,0.00016712,2]
[330402084,1719348647561,-500.0,0.00016712,2]
[330402086,1719348647570,-500.0,0.00016712,2]
[330402088,1719348647580,-500.0,0.00016712,2]
[330402090,1719348647590,-500.0,0.00016712,2]
[330402092,1719348647599,-500.0,0.00016712,2]
[330402094,1719348647608,-500.0,0.00016712,2]
[330402096,1719348647618,-1613.24,0.00016712,2]
[330402098,1719348647628,-151.0,0.00016712,2]
[330402100,1719348647638,-500.0,0.00016712,2]
[330402102,1719348647647,-500.0,0.00016712,2]
[330402104,1719348647656,-500.0,0.00016712,2]
[330402106,1719348647666,-500.0,0.00016712,2]
[330402108,1719348647676,-500.0,0.00016712,2]
[330402110,1719348647685,-525.85415469,0.00016712,2]
[330402112,1719348647696,-500.0,0.00016712,2]
[330402114,1719348647708,-1682.65,0.00016712,2]
[330402116,1719348647717,-151.0,0.00016712,2]
[330402118,1719348647726,-500.0,0.00016712,2]
[330402120,1719348647735,-500.0,0.00016712,2]
[330402122,1719348647746,-500.0,0.00016712,2]
[330402124,1719348647756,-506.98124842,0.00016712,2]
[330402126,1719348647764,-606.13,0.00016712,2]
[330402128,1719348647774,-500.0,0.00016712,2]
[330402130,1719348647785,-500.0,0.00016712,2]
[330402132,1719348647795,-1162.02,0.00016712,2]
[330402133,1719348647804,-629.72,0.00016712,2]
[330402136,1719348647813,-151.0,0.00016712,2]
[330402138,1719348647823,-500.0,0.00016712,2]
[330402139,1719348647833,-500.0,0.00016712,2]
[330402141,1719348647842,-1273.46,0.00016712,2]
[330402143,1719348647851,-500.0,0.00016712,2]
[330402145,1719348647860,-851.15,0.00016712,2]
[330402147,1719348647870,-666.44,0.00016712,2]
[330402149,1719348647879,-151.0,0.00016712,2]
[330402151,1719348647888,-500.0,0.00016712,2]
[330402154,1719348647898,-500.0,0.00016712,2]
[330402156,1719348647908,-151.0,0.00016712,2]
[330402158,1719348647918,-500.0,0.00016712,2]
[330402160,1719348647927,-500.0,0.00016712,2]
[330402162,1719348647937,-151.0,0.00016712,2]
[330402164,1719348647946,-500.0,0.00016712,2]
[330402166,1719348647957,-500.0,0.00016712,2]
[330402168,1719348647966,-826.01,0.00016712,2]
[330402170,1719348647976,-500.0,0.00016712,2]
[330402172,1719348647985,-622.86,0.00016712,2]
[330402174,1719348647994,-151.0,0.00016712,2]
[330402176,1719348648004,-500.0,0.00016712,2]
[330402178,1719348648014,-2519.94,0.00016712,2]
[330402180,1719348648024,-151.0,0.00016712,2]
[330402182,1719348648033,-1218.31,0.00016712,2]
[330402184,1719348648043,-500.0,0.00016712,2]
[330402186,1719348648054,-3376.55,0.00016712,2]
[330402188,1719348648064,-673.6,0.00016712,2]
[330402190,1719348648074,-1875.53,0.00016712,2]
[330402192,1719348648086,-151.0,0.00016712,2]
[330402195,1719348648096,-500.0,0.00016712,2]
[330402197,1719348648106,-500.0,0.00016712,2]
[330402199,1719348648115,-1131.78,0.00016712,2]
[330402201,1719348648124,-6786.21,0.00016712,2]
[330402203,1719348648134,-500.0,0.00016712,2]
[330402205,1719348648143,-1719.44,0.00016712,2]
[330402207,1719348648152,-949.53,0.00016712,2]
[330402209,1719348648161,-9046.64,0.00016712,2]
[330402211,1719348648171,-155.231127,0.00016712,2]
[330402213,1719348648181,-500.0,0.00016712,2]
[330402215,1719348648190,-500.0,0.00016712,2]
[330402217,1719348648199,-500.0,0.00016712,2]
[330402219,1719348648208,-2731.74,0.00016712,2]
[330402221,1719348648218,-997.69,0.00016712,2]
[330402223,1719348648227,-10473.66,0.00016712,2]
[330402225,1719348648236,-1077.49,0.00016712,2]
[330402227,1719348648246,-500.0,0.00016712,2]
[330402229,1719348648255,-500.0,0.00016712,2]
[330402231,1719348648264,-500.0,0.00016712,2]
[330402233,1719348648274,-792.61,0.00016712,2]
[330402235,1719348648283,-151.0,0.00016712,2]
[330402237,1719348648293,-500.0,0.00016712,2]
[330402239,1719348648302,-205.27852319,0.00016712,2]
[330402241,1719348648312,-500.0,0.00016712,2]
[330402243,1719348648321,-500.0,0.00016712,2]
[330402245,1719348648331,-817.48,0.00016712,2]
[330402247,1719348648341,-500.0,0.00016712,2]
[330402249,1719348648351,-151.0,0.00016712,2]
[330402252,1719348648362,-500.0,0.00016712,2]
[330402254,1719348648371,-151.0,0.00016712,2]
[330402255,1719348648380,-500.0,0.00016712,2]
[330402257,1719348648390,-1096.48,0.00016712,2]
[330402260,1719348648400,-500.0,0.00016712,2]
[330402261,1719348648409,-500.0,0.00016712,2]
[330402264,1719348648418,-500.0,0.00016712,2]
[330402266,1719348648428,-500.0,0.00016712,2]
[330402268,1719348648438,-500.0,0.00016712,2]
[330402270,1719348648447,-500.0,0.00016712,2]
[330402272,1719348648457,-1315.17,0.00016712,2]
[330402274,1719348648466,-500.0,0.00016712,2]
[330402276,1719348648476,-4491.92,0.00016712,2]
[330402278,1719348648486,-8998.3,0.00016712,2]
[330402280,1719348648495,-500.0,0.00016712,2]
[330402282,1719348648504,-500.0,0.00016712,2]
[330402284,1719348648513,-500.0,0.00016712,2]
[330402286,1719348648522,-500.0,0.00016712,2]
[330402288,1719348648532,-26521.76,0.00016712,2]
[330402290,1719348648541,-500.0,0.00016712,2]
[330402292,1719348648550,-500.0,0.00016712,2]
[330402294,1719348648560,-500.0,0.00016712,2]
[330402296,1719348648570,-5280.10467953,0.00016944,2]
[330402298,1719348648579,-557.67,0.00016985,2]
[330402300,1719348648589,-557.67,0.00016985,2]
[330402302,1719348648598,-557.67,0.00016985,2]
[330402304,1719348648608,-557.67,0.00016985,2]
[330402306,1719348648618,-557.67,0.00016985,2]
[330402308,1719348648627,-8061.51303637,0.00016986,2]
[330402310,1719348648637,-500.0,0.00016986,2]
[330402312,1719348648647,-250.0,0.00016986,2]
[330402314,1719348648656,-500.0,0.00016986,2]
[330402316,1719348648667,-516.53464916,0.00016986,2]
[330402318,1719348648677,-627.91,0.00016986,2]
[330402320,1719348648688,-500.0,0.00016986,2]
[330402322,1719348648703,-151.0,0.00016986,2]
[330402325,1719348648713,-151.0,0.00016986,2]
[330402327,1719348648722,-500.0,0.00016986,2]
[330402329,1719348648731,-786.27,0.00016986,2]
[330402331,1719348648742,-500.0,0.00016986,2]
[330402333,1719348648752,-506.24917504,0.00016986,2]
[330402346,1719348648762,-500.0,0.00016986,2]
[330402349,1719348648882,-500.0,0.00016986,2]
[330402351,1719348648891,-500.0,0.00016986,2]
[330402353,1719348648901,-500.0,0.00016986,2]
[330402355,1719348648910,-500.0,0.00016986,2]
[330402357,1719348648919,-500.0,0.00016986,2]
[330402359,1719348648929,-500.0,0.00016986,2]
[330402361,1719348648938,-500.0,0.00016986,2]
[330402363,1719348648947,-500.0,0.00016986,2]
[330402365,1719348648956,-770.33,0.00016986,2]
[330402367,1719348648965,-500.0,0.00016986,2]
[330402369,1719348648974,-500.0,0.00016986,2]
[330402371,1719348648983,-650.81,0.00016986,2]
[330402372,1719348648992,-500.0,0.00016986,2]
[330402373,1719348649000,-500.0,0.00016986,2]
[330402374,1719348649009,-1146.46,0.00016986,2]
[330402375,1719348649018,-500.0,0.00016986,2]
[330402376,1719348649027,-500.0,0.00016986,2]
[330402377,1719348649035,-500.0,0.00016986,2]